fUSD/lending_fUSD_20250208
["ID","MTS","AMOUNT","RATE_DAILY","PERIOD"]
[352259464,1739020242207,-1123.58,0.00010118,2]
[352259466,1739020242216,-502.37981891,0.00010118,2]
[352259469,1739020242225,-500.0,0.00010118,2]
[352259471,1739020242235,-500.0,0.00010118,2]
[352259472,1739020242244,-502.00269901,0.00010118,2]
[352259474,1739020242253,-500.0,0.00010118,2]
[352259476,1739020242262,-500.0,0.00010118,2]
[352259478,1739020242271,-500.0,0.00010118,2]
[352259480,1739020242280,-500.0,0.00010118,2]
[352259482,1739020242290,-500.0,0.00010118,2]
[352259485,1739020242301,-500.0,0.00010118,2]
[352259487,1739020242310,-500.0,0.00010118,2]
[352259488,1739020242319,-500.0,0.00010118,2]
[352259490,1739020242329,-501.68308351,0.00010118,2]
[352259493,1739020242338,-500.0,0.00010118,2]
[352259494,1739020242347,-1041.77,0.00010118,2]
[352259496,1739020242357,-500.0,0.00010118,2]
[352259499,1739020242366,-500.0,0.00010118,2]
[352259500,1739020242376,-500.92443239,0.00010118,2]
[352259502,1739020242385,-750.8,0.00010118,2]
[352259504,1739020242394,-505.05181101,0.00010118,2]
[352259506,1739020242404,-500.59281529,0.00010118,2]
[352259508,1739020242413,-501.39154346,0.00010118,2]
[352259510,1739020242422,-500.0,0.00010118,2]
[352259512,1739020242431,-500.0,0.00010118,2]
[352259514,1739020242440,-1069.05,0.00010118,2]
[352259516,1739020242449,-500.0,0.00010118,2]
[352259518,1739020242459,-500.0,0.00010118,2]
[352259520,1739020242468,-500.84464546,0.00010118,2]
[352259522,1739020242477,-503.47537529,0.00010118,2]
[352259524,1739020242487,-1055.59,0.00010118,2]
[352259526,1739020242496,-500.0,0.00010118,2]
[352259528,1739020242505,-500.0,0.00010118,2]
[352259530,1739020242515,-500.0,0.00010118,2]
[352259532,1739020242524,-562.2,0.00010118,2]
[352259534,1739020242534,-501.62549504,0.00010118,2]
[352259536,1739020242543,-885.55,0.00010118,2]
[352259538,1739020242553,-500.0,0.00010118,2]
[352259540,1739020242562,-500.0,0.00010118,2]
[352259542,1739020242571,-500.0,0.00010118,2]
[352259544,1739020242581,-500.0,0.00010118,2]
[352259546,1739020242590,-500.0,0.00010118,2]
[352259548,1739020242600,-500.0,0.00010118,2]
[352259550,1739020242610,-1227.89,0.00010118,2]
[352259552,1739020242619,-501.0966918,0.00010118,2]
[352259554,1739020242629,-500.0,0.00010118,2]
[352259556,1739020242639,-500.0,0.00010118,2]
[352259558,1739020242649,-500.0,0.00010118,2]
[352259560,1739020242658,-500.0,0.00010118,2]
[352259562,1739020242667,-500.0,0.00010118,2]
[352259564,1739020242677,-502.4225134,0.00010118,2]
[352259566,1739020242686,-500.0,0.00010118,2]
[352259568,1739020242695,-504.76231463,0.00010118,2]
[352259570,1739020242704,-500.0,0.00010118,2]
[352259572,1739020242713,-500.0,0.00010118,2]
[352259574,1739020242723,-500.0,0.00010118,2]
[352259576,1739020242732,-500.0,0.00010118,2]
[352259578,1739020242740,-500.70593536,0.00010118,2]
[352259580,1739020242749,-500.0,0.00010118,2]
[352259582,1739020242758,-500.0,0.00010118,2]
[352259584,1739020242767,-296.36378229,0.00010118,2]
[352259586,1739020242777,-501.09976156,0.00010118,2]
[352259588,1739020242786,-500.0,0.00010118,2]
[352259590,1739020242796,-500.0,0.00010118,2]
[352259592,1739020242806,-500.0,0.00010118,2]
[352259594,1739020242817,-500.0,0.00010118,2]
[352259596,1739020242827,-500.0,0.00010118,2]
[352259598,1739020242836,-500.0,0.00010118,2]
[352259600,1739020242845,-500.0,0.00010118,2]
[352259602,1739020242854,-1428.69,0.00010118,2]
[352259604,1739020242864,-501.83647617,0.00010118,2]
[352259606,1739020242873,-500.0,0.00010118,2]
[352259607,1739020242883,-1318.66,0.00010118,2]
[352259608,1739020242895,-500.0,0.00010118,2]
[352259609,1739020242904,-500.0,0.00010118,2]
[352259610,1739020242913,-500.0,0.00010118,2]
[352259611,1739020242923,-500.0,0.00010118,2]
[352259612,1739020242932,-500.0,0.00010118,2]
[352259613,1739020242941,-500.0,0.00010118,2]
[352259614,1739020242950,-543.35806428,0.00010118,2]
[352259615,1739020242959,-500.8795913,0.00010118,2]
[352259616,1739020242968,-500.0,0.00010118,2]
[352259617,1739020242978,-909.39,0.00010118,2]
[352259618,1739020242987,-500.0,0.00010118,2]
[352259619,1739020242997,-500.67622177,0.00010118,2]
[352259620,1739020243007,-500.0,0.00010118,2]
[352259622,1739020243016,-523.11699801,0.00010118,2]
[352259624,1739020243026,-500.90075622,0.00010118,2]
[352259626,1739020243035,-500.0,0.00010118,2]
[352259628,1739020243046,-500.0,0.00010118,2]
[352259630,1739020243056,-500.0,0.00010118,2]
[352259632,1739020243066,-741.27,0.00010118,2]
[352259634,1739020243075,-501.2514936,0.00010118,2]
[352259636,1739020243084,-504.30962822,0.00010118,2]
[352259638,1739020243093,-500.0,0.00010118,2]
[352259640,1739020243103,-1449.6,0.00010118,2]
[352259642,1739020243112,-609.95,0.00010118,2]
[352259644,1739020243122,-596.33,0.00010118,2]
[352259646,1739020243131,-500.0,0.00010118,2]
[352259648,1739020243142,-500.0,0.00010118,2]
[352259650,1739020243151,-500.0,0.00010118,2]
[352259652,1739020243161,-493.20489409,0.00010118,2]
[352259654,1739020243171,-500.0,0.00010118,2]
[352259656,1739020243180,-500.0,0.00010118,2]
[352259658,1739020243190,-500.0,0.00010118,2]
[352259660,1739020243199,-500.0,0.00010118,2]
[352259662,1739020243209,-500.0,0.00010118,2]
[352259664,1739020243218,-833.9,0.00010118,2]
[352259666,1739020243227,-503.7733004,0.00010118,2]
[352259668,1739020243236,-768.73,0.00010118,2]
[352259670,1739020243246,-500.72070569,0.00010118,2]
[352259672,1739020243256,-501.77891751,0.00010118,2]
[352259674,1739020243265,-500.4414531,0.00010118,2]
[352259676,1739020243274,-500.0,0.00010118,2]
[352259678,1739020243284,-644.8,0.00010118,2]
[352259680,1739020243293,-500.35485252,0.00010118,2]
[352259682,1739020243304,-500.0,0.00010118,2]
[352259684,1739020243314,-500.0,0.00010118,2]
[352259686,1739020243324,-500.0,0.00010118,2]
[352259688,1739020243333,-500.0,0.00010118,2]
[352259690,1739020243342,-1205.53,0.00010118,2]
[352259692,1739020243352,-500.0,0.00010118,2]
[352259694,1739020243361,-500.0,0.00010118,2]
[352259696,1739020243370,-501.18461719,0.00010118,2]
[352259698,1739020243379,-500.0,0.00010118,2]
[352259700,1739020243389,-502.16564422,0.00010118,2]
[352259702,1739020243398,-500.0,0.00010118,2]
[352259704,1739020243407,-500.0,0.00010118,2]
[352259707,1739020243417,-500.0,0.00010118,2]
[352259710,1739020243426,-660.9,0.00010118,2]
[352259712,1739020243436,-448.43050465,0.00010118,2]
[352259715,1739020243445,-529.36,0.00010118,2]
[352259718,1739020243456,-501.14672074,0.00010118,2]
[352259721,1739020243466,-500.0,0.00010118,2]
[352259724,1739020243475,-500.0,0.00010118,2]
[352259726,1739020243484,-572.09117263,0.00010118,2]
[352259729,1739020243493,-500.0,0.00010118,2]
[352259732,1739020243502,-500.0,0.00010118,2]
[352259734,1739020243511,-500.0,0.00010118,2]
[352259736,1739020243521,-1285.09,0.00010118,2]
[352259738,1739020243530,-3583.76,0.00010118,2]
[352259740,1739020243539,-500.0,0.00010118,2]
[352259742,1739020243548,-502.82436707,0.00010118,2]
[352259744,1739020243558,-500.0,0.00010118,2]
[352259746,1739020243567,-500.0,0.00010118,2]
[352259748,1739020243576,-500.0,0.00010118,2]
[352259750,1739020243585,-500.0,0.00010118,2]
[352259752,1739020243594,-1379.8,0.00010118,2]
[352259754,1739020243603,-500.0,0.00010118,2]
[352259756,1739020243612,-500.0,0.00010118,2]
[352259758,1739020243621,-995.06,0.00010118,2]
[352259760,1739020243631,-761.85,0.00010118,2]
[352259762,1739020243640,-500.0,0.00010118,2]
[352259764,1739020243649,-500.0,0.00010118,2]
[352259766,1739020243658,-1861.18,0.00010118,2]
[352259768,1739020243667,-500.0,0.00010118,2]
[352259770,1739020243676,-500.0,0.00010118,2]
[352259772,1739020243686,-500.0,0.00010118,2]
[352259774,1739020243695,-767.16,0.00010118,2]
[352259776,1739020243704,-501.6486945,0.00010118,2]
[352259778,1739020243713,-500.0,0.00010118,2]
[352259780,1739020243722,-500.81680656,0.00010118,2]
[352259782,1739020243731,-1956.03,0.00010118,2]
[352259784,1739020243740,-500.0,0.00010118,2]
[352259786,1739020243750,-500.0,0.00010118,2]
[352259788,1739020243759,-637.50345832,0.00010118,2]
[352259790,1739020243768,-500.0,0.00010118,2]
[352259792,1739020243777,-618.51,0.00010118,2]
[352259793,1739020243786,-2847.12,0.00010118,2]
[352259796,1739020243796,-500.0,0.00010118,2]
[352259798,1739020243808,-500.8889917,0.00010118,2]
[352259799,1739020243818,-500.0,0.00010118,2]
[352259802,1739020243827,-1219.15,0.00010118,2]
[352259804,1739020243836,-500.77284823,0.00010118,2]
[352259806,1739020243846,-500.0,0.00010118,2]
[352259808,1739020243856,-500.0,0.00010118,2]
[352259810,1739020243865,-500.0,0.00010118,2]
[352259811,1739020243875,-500.65072448,0.00010118,2]
[352259813,1739020243885,-500.0,0.00010118,2]
[352259815,1739020243895,-500.0,0.00010118,2]
[352259817,1739020243904,-500.0,0.00010118,2]
[352259819,1739020243913,-500.0,0.00010118,2]
[352259821,1739020243923,-1309.52,0.00010118,2]
[352259823,1739020243933,-500.0,0.00010118,2]
[352259825,1739020243943,-2233.48,0.00010118,2]
[352259827,1739020243952,-500.0,0.00010118,2]
[352259829,1739020243961,-500.0,0.00010118,2]
[352259831,1739020243970,-500.0,0.00010118,2]
[352259833,1739020243980,-500.0,0.00010118,2]
[352259835,1739020243989,-629.39,0.00010118,2]
[352259837,1739020243998,-500.0,0.00010118,2]
[352259839,1739020244007,-500.0,0.00010118,2]
[352259841,1739020244017,-501.81165282,0.00010118,2]
[352259843,1739020244026,-222.39883013,0.00010118,2]
[352259845,1739020244035,-500.0,0.00010118,2]
[352259847,1739020244045,-500.0,0.00010118,2]
[352259849,1739020244054,-500.0,0.00010118,2]
[352259851,1739020244063,-2007.43,0.00010118,2]
[352259853,1739020244073,-1326.46,0.00010118,2]
[352259855,1739020244082,-500.0,0.00010118,2]
[352259857,1739020244091,-500.0,0.00010118,2]
[352259859,1739020244101,-500.0,0.00010118,2]
[352259861,1739020244110,-500.0,0.00010118,2]
[352259863,1739020244119,-271.04015918,0.00010118,2]
[352259865,1739020244128,-500.0,0.00010118,2]
[352259867,1739020244138,-500.0,0.00010118,2]
[352259869,1739020244147,-500.0,0.00010118,2]
[352259871,1739020244156,-501.78431692,0.00010118,2]
[352259873,1739020244165,-538.15,0.00010118,2]
[352259875,1739020244175,-672.52,0.00010118,2]
[352259877,1739020244184,-500.0,0.00010118,2]
[352259879,1739020244193,-500.36942468,0.00010118,2]
[352259881,1739020244202,-500.0,0.00010118,2]
[352259883,1739020244212,-500.0,0.00010118,2]
[352259885,1739020244221,-500.0,0.00010118,2]
[352259887,1739020244231,-1070.67,0.00010118,2]
[352259889,1739020244240,-500.0,0.00010118,2]
[352259891,1739020244249,-502.45672822,0.00010118,2]
[352259893,1739020244259,-500.0,0.00010118,2]
[352259895,1739020244268,-500.0,0.00010118,2]
[352259897,1739020244277,-500.0,0.00010118,2]
[352259899,1739020244287,-500.0,0.00010118,2]
[352259901,1739020244296,-500.0,0.00010118,2]
[352259903,1739020244305,-500.0,0.00010118,2]
[352259905,1739020244314,-500.0,0.00010118,2]
[352259906,1739020244323,-500.0,0.00010118,2]
[352259908,1739020244333,-2270.09,0.00010118,2]
[352259910,1739020244341,-500.0,0.00010118,2]
[352259912,1739020244351,-500.0,0.00010118,2]
[352259914,1739020244360,-537.41,0.00010118,2]
[352259916,1739020244369,-500.0,0.00010118,2]
[352259918,1739020244378,-500.0,0.00010118,2]
[352259920,1739020244387,-500.0,0.00010118,2]
[352259922,1739020244397,-295.25351486,0.00010118,2]
[352259924,1739020244406,-500.0,0.00010118,2]
[352259926,1739020244416,-500.0,0.00010118,2]
[352259928,1739020244425,-500.0,0.00010118,2]
[352259930,1739020244434,-500.0,0.00010118,2]
[352259932,1739020244444,-654.41,0.00010118,2]
[352259934,1739020244454,-500.0,0.00010118,2]
[352259936,1739020244464,-500.60818726,0.00010118,2]
[352259938,1739020244474,-500.0,0.00010118,2]
[352259940,1739020244484,-500.0,0.00010118,2]
[352259942,1739020244493,-1624.31,0.00010118,2]
[352259944,1739020244503,-500.0,0.00010118,2]
[352259946,1739020244512,-500.0,0.00010118,2]
[352259948,1739020244521,-500.0,0.00010118,2]
[352259950,1739020244530,-500.0,0.00010118,2]
[352259952,1739020244539,-500.0,0.00010118,2]
[352259954,1739020244549,-500.0,0.00010118,2]
[352259956,1739020244558,-500.0,0.00010118,2]
[352259958,1739020244568,-500.0,0.00010118,2]
[352259960,1739020244577,-500.0,0.00010118,2]
[352259962,1739020244586,-500.73189604,0.00010118,2]
[352259964,1739020244595,-500.0,0.00010118,2]
[352259966,1739020244604,-500.0,0.00010118,2]
[352259968,1739020244613,-500.0,0.00010118,2]
[352259970,1739020244623,-500.0,0.00010118,2]
[352259972,1739020244632,-2768.81,0.00010118,2]
[352259974,1739020244642,-500.0,0.00010118,2]
[352259976,1739020244651,-500.0,0.00010118,2]
[352259978,1739020244661,-502.46060661,0.00010118,2]
[352259980,1739020244670,-840.8,0.00010118,2]
[352259982,1739020244680,-517.09,0.00010118,2]
[352259984,1739020244689,-500.0,0.00010118,2]
[352259986,1739020244698,-503.86223036,0.00010118,2]
[352260008,1739020244707,-500.0,0.00010118,2]
[352260010,1739020244910,-3723.14,0.00010118,2]
[352260012,1739020244920,-500.0,0.00010118,2]
[352260014,1739020244929,-500.33557955,0.00010118,2]
[352260016,1739020244939,-500.0,0.00010118,2]
[352260018,1739020244948,-500.0,0.00010118,2]
[352260020,1739020244959,-605.04,0.00010118,2]
[352260023,1739020244968,-500.0,0.00010118,2]
[352260024,1739020244978,-500.53714931,0.00010118,2]
[352260027,1739020244987,-1535.65,0.00010118,2]
[352260029,1739020244997,-501.21288055,0.00010118,2]
[352260031,1739020245007,-982.02,0.00010118,2]
[352260033,1739020245017,-500.0,0.00010118,2]
[352260035,1739020245026,-500.0,0.00010118,2]
[352260037,1739020245036,-500.0,0.00010118,2]
[352260039,1739020245045,-504.75370137,0.00010118,2]
[352260041,1739020245055,-502.13033844,0.00010118,2]
[352260043,1739020245064,-500.0,0.00010118,2]
[352260045,1739020245073,-1059.77,0.00010118,2]
[352260047,1739020245082,-500.0,0.00010118,2]
[352260049,1739020245091,-500.0,0.00010118,2]
[352260051,1739020245101,-1288.85,0.00010118,2]
[352260053,1739020245111,-501.04554718,0.00010118,2]
[352260055,1739020245120,-592.05,0.00010118,2]
[352260057,1739020245130,-500.0,0.00010118,2]
[352260059,1739020245139,-858.39,0.00010118,2]
[352260061,1739020245148,-502.21147742,0.00010118,2]
[352260063,1739020245158,-500.0,0.00010118,2]
[352260065,1739020245167,-511.97559214,0.00010118,2]
[352260067,1739020245177,-500.0,0.00010118,2]
[352260069,1739020245186,-2635.72,0.00010118,2]
[352260071,1739020245195,-500.24184364,0.00010118,2]
[352260073,1739020245205,-500.0,0.00010118,2]
[352260075,1739020245214,-500.0,0.00010118,2]
[352260077,1739020245223,-500.0,0.00010118,2]
[352260079,1739020245232,-500.0,0.00010118,2]
[352260081,1739020245243,-1294.22,0.00010118,2]
[352260083,1739020245254,-500.0,0.00010118,2]
[352260085,1739020245263,-638.8,0.00010118,2]
[352260087,1739020245273,-503.12,0.00010118,2]
[352260089,1739020245282,-500.0,0.00010118,2]
[352260091,1739020245291,-500.0,0.00010118,2]
[352260093,1739020245300,-500.0,0.00010118,2]
[352260094,1739020245310,-1426.1,0.00010118,2]
[352260096,1739020245319,-500.0,0.00010118,2]
[352260098,1739020245329,-500.0,0.00010118,2]
[352260101,1739020245339,-500.0,0.00010119,2]
[352260103,1739020245348,-500.0,0.00010119,2]
[352260104,1739020245357,-500.0,0.00010119,2]
[352260107,1739020245367,-500.0,0.00010119,2]
[352260109,1739020245376,-500.0,0.00010119,2]
[352260111,1739020245386,-500.0,0.00010119,2]
[352260112,1739020245395,-500.0,0.00010119,2]
[352260114,1739020245406,-503.18043211,0.00010119,2]
[352260117,1739020245415,-500.0,0.00010119,2]
[352260119,1739020245425,-500.0,0.00010119,2]
[352260120,1739020245435,-500.0,0.00010119,2]
[352260123,1739020245445,-500.0,0.00010119,2]
[352260124,1739020245454,-500.0,0.00010119,2]
[352260126,1739020245464,-500.0,0.00010119,2]
[352260128,1739020245474,-500.0,0.00010119,2]
[352260130,1739020245483,-500.0,0.00010119,2]
[352260132,1739020245493,-500.0,0.00010119,2]
[352260135,1739020245503,-500.0,0.00010119,2]
[352260136,1739020245512,-500.0,0.00010119,2]
[352260138,1739020245522,-500.0,0.00010119,2]
[352260140,1739020245532,-500.0,0.00010119,2]
[352260142,1739020245541,-500.0,0.00010119,2]
[352260145,1739020245551,-500.0,0.00010119,2]
[352260147,1739020245561,-500.0,0.00010119,2]
[352260148,1739020245570,-500.0,0.00010119,2]
[352260150,1739020245580,-500.0,0.00010119,2]
[352260152,1739020245589,-500.73131144,0.00010119,2]
[352260154,1739020245598,-500.0,0.00010119,2]
[352260157,1739020245608,-500.0,0.00010119,2]
[352260159,1739020245618,-501.06850721,0.00010119,2]
[352260160,1739020245627,-500.0,0.00010119,2]
[352260162,1739020245637,-500.0,0.00010119,2]
[352260164,1739020245647,-500.0,0.00010119,2]
[352260167,1739020245656,-500.0,0.00010119,2]
[352260168,1739020245665,-500.0,0.00010119,2]
[352260170,1739020245675,-502.33713378,0.00010119,2]
[352260172,1739020245684,-500.0,0.00010119,2]
[352260173,1739020245693,-500.0,0.00010119,2]
[352260174,1739020245702,-500.0,0.00010119,2]
[352260176,1739020245711,-500.8976492,0.00010119,2]
[352260177,1739020245720,-500.0,0.00010119,2]
[352260178,1739020245729,-508.22921445,0.00010119,2]
[352260179,1739020245738,-500.0,0.00010119,2]
[352260180,1739020245747,-500.0,0.00010119,2]
[352260181,1739020245755,-192.32367901,0.00010119,2]
[352260182,1739020245764,-346.00135973,0.00010119,2]
[352260183,1739020245774,-500.0,0.00010119,2]
[352260184,1739020245782,-500.0,0.00010119,2]
[352260185,1739020245792,-500.0,0.00010119,2]
[352260186,1739020245801,-500.0,0.00010119,2]
[352260187,1739020245814,-500.0,0.00010119,2]
[352260189,1739020245823,-500.0,0.00010119,2]
[352260191,1739020245832,-500.0,0.00010119,2]
[352260193,1739020245842,-500.0,0.00010119,2]
[352260195,1739020245852,-500.0,0.00010119,2]
[352260197,1739020245862,-500.0,0.00010119,2]
[352260199,1739020245871,-500.0,0.00010119,2]
[352260201,1739020245881,-500.0,0.00010119,2]
[352260203,1739020245892,-500.0,0.00010119,2]
[352260206,1739020245902,-500.0,0.00010119,2]
[352260209,1739020245912,-500.0,0.00010119,2]
[352260212,1739020245921,-500.0,0.00010119,2]
[352260214,1739020245931,-500.0,0.00010119,2]
[352260219,1739020245941,-500.0,0.00010119,2]
[352260222,1739020245951,-502.81223051,0.00010119,2]
[352260225,1739020245960,-500.40400411,0.00010119,2]
[352260226,1739020245969,-500.0,0.00010119,2]
[352260229,1739020245979,-500.0,0.00010119,2]
[352260231,1739020245988,-500.0,0.00010119,2]
[352260233,1739020245997,-500.0,0.00010119,2]
[352260235,1739020246007,-564.28,0.00010119,2]
[352260237,1739020246017,-500.0,0.00010119,2]
[352260239,1739020246027,-500.0,0.00010119,2]
[352260241,1739020246037,-500.0,0.00010119,2]
[352260243,1739020246046,-500.0,0.00010119,2]
[352260245,1739020246056,-500.0,0.00010119,2]
[352260247,1739020246066,-501.56285384,0.00010119,2]
[352260249,1739020246075,-503.04138024,0.00010119,2]
[352260251,1739020246084,-500.0,0.00010119,2]
[352260253,1739020246094,-500.0,0.00010119,2]
[352260255,1739020246103,-514.41507734,0.00010119,2]
[352260257,1739020246113,-500.0,0.00010119,2]
[352260259,1739020246123,-500.0,0.00010119,2]
[352260261,1739020246132,-500.0,0.00010119,2]
[352260263,1739020246141,-500.0,0.00010119,2]
[352260265,1739020246151,-500.0,0.00010119,2]
[352260267,1739020246161,-500.0,0.00010119,2]
[352260269,1739020246170,-507.7209899,0.00010119,2]
[352260271,1739020246180,-317.18164963,0.00010119,2]
[352260273,1739020246190,-500.0,0.00010119,2]
[352260275,1739020246200,-302.38453297,0.00010119,2]
[352260277,1739020246209,-500.0,0.00010119,2]
[352260279,1739020246219,-316.2745678,0.00010119,2]
[352260281,1739020246229,-500.0,0.00010119,2]
[352260283,1739020246239,-642.41351035,0.00010119,2]
[352260285,1739020246249,-208.26745928,0.00010119,2]
[352260287,1739020246258,-316.90678706,0.00010119,2]
[352260289,1739020246268,-1059.26,0.00010119,2]
[352260292,1739020246278,-500.0,0.00010119,2]
[352260293,1739020246287,-500.0,0.00010119,2]
[352260295,1739020246297,-500.0,0.00010119,2]
[352260297,1739020246306,-501.9048822,0.00010119,2]
[352260299,1739020246316,-500.34278401,0.00010119,2]
[352260301,1739020246326,-500.0,0.00010119,2]
[352260303,1739020246335,-501.10786929,0.00010119,2]
[352260305,1739020246345,-503.87003087,0.00010119,2]
[352260307,1739020246355,-500.0,0.00010119,2]
[352260309,1739020246364,-500.0,0.00010119,2]
[352260311,1739020246374,-500.0,0.00010119,2]
[352260313,1739020246383,-500.0,0.00010119,2]
[352260315,1739020246394,-500.0,0.00010119,2]
[352260317,1739020246404,-500.0,0.00010119,2]
[352260319,1739020246413,-500.0,0.00010119,2]
[352260321,1739020246422,-500.0,0.00010119,2]
[352260323,1739020246432,-500.0,0.00010119,2]
[352260325,1739020246442,-500.0,0.00010119,2]
[352260327,1739020246451,-500.0,0.00010119,2]
[352260328,1739020246460,-586.4966869,0.00010119,2]
[352260329,1739020246469,-500.0,0.00010119,2]
[352260330,1739020246479,-702.17,0.00010119,2]
[352260331,1739020246488,-500.0,0.00010119,2]
[352260332,1739020246499,-500.0,0.00010119,2]
[352260333,1739020246509,-500.0,0.00010119,2]
[352260334,1739020246519,-500.0,0.00010119,2]
[352260335,1739020246530,-500.0,0.00010119,2]
[352260336,1739020246540,-368.14205291,0.00010119,2]
[352260337,1739020246549,-500.0,0.00010119,2]
[352260338,1739020246559,-500.0,0.00010119,2]
[352260339,1739020246568,-500.0,0.00010119,2]
[352260340,1739020246578,-500.0,0.00010119,2]
[352260341,1739020246588,-500.0,0.00010119,2]
[352260342,1739020246598,-500.0,0.00010119,2]
[352260343,1739020246608,-500.0,0.00010119,2]
[352260344,1739020246617,-500.0,0.00010119,2]
[352260345,1739020246627,-500.0,0.00010119,2]
[352260346,1739020246637,-500.0,0.00010119,2]
[352260348,1739020246646,-500.0,0.00010119,2]
[352260349,1739020246656,-500.0,0.00010119,2]
[352260350,1739020246665,-500.0,0.00010119,2]
[352260351,1739020246674,-532.9,0.00010119,2]
[352260352,1739020246684,-500.0,0.00010119,2]
[352260353,1739020246693,-500.0,0.00010119,2]
[352260354,1739020246702,-500.0,0.00010119,2]
[352260355,1739020246711,-500.0,0.00010119,2]
[352260356,1739020246720,-500.0,0.00010119,2]
[352260357,1739020246729,-500.0,0.00010119,2]
[352260358,1739020246738,-500.0,0.00010119,2]
[352260359,1739020246748,-500.0,0.00010119,2]
[352260360,1739020246758,-500.0,0.00010119,2]
[352260361,1739020246767,-500.0,0.00010119,2]
[352260362,1739020246776,-500.0,0.00010119,2]
[352260363,1739020246785,-500.0,0.00010119,2]
[352260364,1739020246794,-500.0,0.00010119,2]
[352260365,1739020246804,-500.0,0.00010119,2]
[352260366,1739020246818,-503.26767099,0.00010119,2]
[352260367,1739020246827,-500.0,0.00010119,2]
[352260368,1739020246836,-500.0,0.00010119,2]
[352260369,1739020246845,-500.0,0.00010119,2]
[352260370,1739020246854,-500.0,0.00010119,2]
[352260371,1739020246864,-500.0,0.00010119,2]
[352260372,1739020246873,-500.0,0.00010119,2]
[352260373,1739020246889,-500.0,0.00010119,2]
[352260374,1739020246911,-500.0,0.00010119,2]
[352260376,1739020246932,-503.09379956,0.00010119,2]
[352260378,1739020246954,-500.0,0.00010119,2]
[352260380,1739020246975,-500.0,0.00010119,2]
[352260382,1739020246996,-502.9789374,0.00010119,2]
[352260384,1739020247016,-505.65641087,0.00010119,2]
[352260386,1739020247036,-500.0,0.00010119,2]
[352260388,1739020247059,-500.0,0.00010119,2]
[352260390,1739020247088,-503.92633778,0.00010119,2]
[352260392,1739020247119,-500.0,0.00010119,2]
[352260394,1739020247147,-500.0,0.00010119,2]
[352260396,1739020247171,-500.0,0.00010119,2]
[352260398,1739020247181,-500.0,0.00010119,2]
[352260400,1739020247190,-504.25634877,0.00010119,2]
[352260402,1739020247200,-500.0,0.00010119,2]
[352260404,1739020247210,-500.0,0.00010119,2]
[352260406,1739020247219,-500.0,0.00010119,2]
[352260408,1739020247229,-390.36488569,0.00010119,2]
[352260410,1739020247239,-500.46887542,0.00010119,2]
[352260412,1739020247248,-501.13028311,0.00010119,2]
[352260414,1739020247258,-500.0,0.00010119,2]
[352260416,1739020247267,-500.0,0.00010119,2]
[352260418,1739020247277,-500.0,0.00010119,2]
[352260420,1739020247287,-500.0,0.00010119,2]
[352260422,1739020247296,-500.0,0.00010119,2]
[352260424,1739020247306,-500.0,0.00010119,2]